bitfinex/quotes_BTCUSD_20230901
["timestamp","ask_amount","ask_price","bid_price","bid_amount"]
[1693588256011,0.45890678,25726.0,25725.0,0.31658303]
[1693588256236,0.45890678,25726.0,25725.0,0.2421]
[1693588256237,0.38708678,25726.0,25725.0,0.2421]
[1693588256448,0.38708678,25726.0,25725.0,0.25862954]
[1693588256650,0.54263678,25726.0,25725.0,0.25862954]
[1693588256871,0.60923678,25726.0,25725.0,0.33311257]
[1693588257084,0.54263678,25726.0,25725.0,0.25862954]
[1693588257701,0.57863678,25726.0,25725.0,0.25862954]
[1693588258324,0.54263678,25726.0,25725.0,0.25862954]
[1693588258474,0.57863678,25726.0,25725.0,0.25862954]
[1693588260061,0.61463678,25726.0,25725.0,0.25862954]
[1693588260267,0.57863678,25726.0,25725.0,0.25862954]
[1693588260471,0.60563678,25726.0,25725.0,0.25862954]
[1693588262394,0.19855,25726.0,25725.0,0.25862954]
[1693588262601,0.07848,25734.0,25728.0,0.08]
[1693588262805,0.38708678,25733.0,25729.0,0.33028303]
[1693588262998,0.38708678,25733.0,25732.0,0.2421]
[1693588264075,0.68754283,25733.0,25732.0,0.2421]
[1693588264288,0.93671383,25733.0,25732.0,9.11e-06]
[1693588264526,2.20192786,25733.0,25732.0,0.003]
[1693588264730,2.41544786,25733.0,25732.0,0.001]
[1693588264938,2.53902122,25733.0,25732.0,0.001]
[1693588265145,2.98332122,25733.0,25732.0,0.001]
[1693588265353,2.85128122,25733.0,25732.0,0.001]
[1693588265547,2.84084122,25733.0,25732.0,0.001]
[1693588265757,2.09282786,25733.0,25732.0,0.2431]
[1693588265969,2.28602786,25733.0,25732.0,0.2461]
[1693588266177,2.50447425,25733.0,25732.0,0.26235331]
[1693588266390,2.46847425,25733.0,25732.0,0.26135331]
[1693588266608,2.41420786,25733.0,25732.0,0.2461]
[1693588266815,2.78310786,25733.0,25732.0,0.2431]
[1693588267035,4.72760988,25733.0,25732.0,0.001]
[1693588267248,5.00646988,25733.0,25732.0,0.004]
[1693588267456,4.77009048,25733.0,25732.0,0.001]
[1693588267669,5.80241048,25733.0,25732.0,0.004]
[1693588267876,4.77565048,25733.0,25732.0,0.004]
[1693588268094,4.60069048,25733.0,25732.0,0.004]
[1693588268314,4.75297048,25733.0,25732.0,0.004]
[1693588268519,4.61569048,25733.0,25732.0,0.004]
[1693588268726,5.20444465,25733.0,25732.0,0.004]
[1693588268933,8.21188465,25733.0,25732.0,0.194]
[1693588269142,7.82245048,25733.0,25732.0,0.194]
[1693588269351,7.08126621,25733.0,25732.0,0.194]
[1693588269565,6.86784309,25733.0,25732.0,0.194]
[1693588269767,4.60059261,25733.0,25732.0,0.194]
[1693588269984,4.76067261,25733.0,25732.0,0.194]
[1693588270144,4.61811261,25733.0,25732.0,0.194]
[1693588270349,4.64981026,25733.0,25732.0,0.194]
[1693588270557,4.78733026,25733.0,25732.0,0.194]
[1693588270760,5.04667075,25733.0,25732.0,0.194]
[1693588270971,5.06447075,25733.0,25732.0,0.16328598]
[1693588271120,9.74667714,25733.0,25732.0,0.16328598]
[1693588271315,5.70833714,25733.0,25732.0,0.16328598]
[1693588271528,7.70419714,25733.0,25732.0,0.16328598]
[1693588271777,7.33611075,25733.0,25732.0,0.16328598]
[1693588271991,7.08375075,25733.0,25732.0,0.16328598]
[1693588272198,7.08339075,25733.0,25732.0,0.16328598]
[1693588272430,7.22971434,25733.0,25732.0,0.16328598]
[1693588272639,4.99423075,25733.0,25732.0,0.16328598]
[1693588272837,5.00983075,25733.0,25732.0,0.16328598]
[1693588273016,5.00179075,25733.0,25732.0,0.16328598]
[1693588273172,6.01955075,25733.0,25732.0,0.16328598]
[1693588273368,5.01787075,25733.0,25732.0,0.16328598]
[1693588273567,5.02051075,25733.0,25732.0,0.16328598]
[1693588273805,5.01691075,25733.0,25732.0,0.16328598]
[1693588273997,4.99123075,25733.0,25732.0,0.16328598]
[1693588274200,5.22489847,25733.0,25732.0,0.16328598]
[1693588274355,2.56571372,25733.0,25732.0,0.23776901]
[1693588274582,2.27139323,25733.0,25732.0,0.40538598]
[1693588274812,2.34411323,25733.0,25732.0,0.42145839]
[1693588275003,2.32279323,25733.0,25732.0,0.42145839]
[1693588275261,2.12004551,25733.0,25732.0,0.42145839]
[1693588275461,2.12004551,25733.0,25732.0,0.17935839]
[1693588275462,2.13600551,25733.0,25732.0,0.17935839]
[1693588275670,2.41994508,25733.0,25732.0,0.17935839]
[1693588275886,2.41616508,25733.0,25732.0,0.16328598]
[1693588276297,2.73436508,25733.0,25732.0,0.16328598]
[1693588276496,2.47292551,25733.0,25732.0,0.16328598]
[1693588276700,2.47184551,25733.0,25732.0,0.16328598]
[1693588276872,2.48252551,25733.0,25732.0,0.16328598]
[1693588277079,2.48276551,25733.0,25732.0,0.16328598]
[1693588277281,2.68570264,25733.0,25732.0,0.16328598]
[1693588277654,3.35594264,25733.0,25732.0,0.16328598]
[1693588277833,3.35150264,25733.0,25732.0,0.16328598]
[1693588278041,3.35990264,25733.0,25732.0,0.16328598]
[1693588278244,3.35450264,25733.0,25732.0,0.16328598]
[1693588278424,3.35306264,25733.0,25732.0,0.16328598]
[1693588278628,3.46533281,25733.0,25732.0,0.16328598]
[1693588278785,3.42129281,25733.0,25732.0,0.16328598]
[1693588278979,3.33566264,25733.0,25732.0,0.16328598]
[1693588279202,0.46142973,25731.0,25727.0,0.5192]
[1693588279480,2.20104829,25730.0,25727.0,0.2421]
[1693588279666,1.91521686,25729.0,25727.0,0.2421]
[1693588279886,1.44043008,25728.0,25724.0,0.612]
[1693588280185,1.44043008,25728.0,25726.0,0.2421]
[1693588280186,1.50751686,25727.0,25726.0,0.2421]
[1693588280333,1.61595686,25727.0,25726.0,0.2421]
[1693588280531,1.60923686,25727.0,25726.0,0.2421]
[1693588280764,1.52751686,25727.0,25726.0,0.2421]
[1693588281359,1.81396915,25727.0,25726.0,0.2371]
[1693588281700,1.81702915,25727.0,25726.0,0.25321418]
[1693588281904,1.81918915,25727.0,25726.0,0.25321418]
[1693588282108,1.81894915,25727.0,25726.0,0.25321418]
[1693588282314,1.81120915,25727.0,25726.0,0.25321418]
[1693588282515,1.81156915,25727.0,25726.0,0.25321418]
[1693588282690,1.81174915,25727.0,25726.0,0.25321418]
[1693588282931,1.81256915,25727.0,25726.0,0.2401]
[1693588283131,1.81262915,25727.0,25726.0,0.2401]
[1693588283339,1.81178915,25727.0,25726.0,0.25629121]
[1693588283546,1.81256915,25727.0,25726.0,0.25629121]
[1693588283759,1.74560915,25727.0,25726.0,0.2411]
[1693588283970,1.75360915,25727.0,25726.0,0.25729121]
[1693588284374,1.75360915,25727.0,25726.0,0.2411]
[1693588284806,1.75360915,25727.0,25726.0,0.25729121]
[1693588285663,1.81924915,25727.0,25726.0,0.25729121]
[1693588285881,1.81942915,25727.0,25726.0,0.25729121]
[1693588286099,1.53651686,25727.0,25726.0,0.25729121]
[1693588286298,1.85760675,25727.0,25726.0,0.25729121]
[1693588286519,1.85604675,25727.0,25726.0,0.2411]
[1693588286697,1.85646675,25727.0,25726.0,0.2411]
[1693588286893,1.85580675,25727.0,25726.0,0.2411]
[1693588287127,1.85316675,25727.0,25726.0,0.25721418]
[1693588287315,1.85616675,25727.0,25726.0,0.25721418]
[1693588287468,1.86150675,25727.0,25726.0,0.25721418]
[1693588287673,1.63761686,25727.0,25726.0,0.25721418]
[1693588287878,1.63761686,25727.0,25726.0,0.02011418]
[1693588287879,2.16123686,25727.0,25726.0,0.02011418]
[1693588288083,4.90866492,25727.0,25726.0,0.004]
[1693588288288,4.85610492,25727.0,25726.0,0.004]
[1693588288462,4.31727075,25727.0,25726.0,0.004]
[1693588288662,2.79328862,25727.0,25726.0,0.004]
[1693588288872,2.79076862,25727.0,25726.0,0.004]
[1693588289096,2.78920862,25727.0,25726.0,0.004]
[1693588289324,2.79724862,25727.0,25726.0,0.004]
[1693588289526,3.79935246,25727.0,25726.0,0.174]
[1693588289752,4.90910254,25727.0,25726.0,0.174]
[1693588290053,4.57836309,25727.0,25726.0,0.174]
[1693588290252,4.54584309,25727.0,25726.0,0.171]
[1693588290510,4.54212309,25727.0,25726.0,0.17]
[1693588290715,4.6769252,25727.0,25726.0,0.171]
[1693588290917,5.4026525,25727.0,25726.0,0.173]
[1693588291150,8.90236409,25727.0,25726.0,0.001]
[1693588291316,8.89624409,25727.0,25726.0,0.001]
[1693588291517,8.89354409,25727.0,25726.0,0.001]
[1693588291725,8.88454409,25727.0,25726.0,0.001]
[1693588291925,8.81128529,25727.0,25726.0,0.001]
[1693588292153,8.81970511,25727.0,25726.0,0.001]
[1693588292351,0.06,25721.0,25720.0,0.33012173]
[1693588292553,1.74235157,25721.0,25720.0,0.33012173]
[1693588292755,2.02227686,25721.0,25720.0,0.33012173]
[1693588292957,0.82224678,25721.0,25720.0,0.33012173]
[1693588293173,0.85924678,25721.0,25720.0,0.33012173]
[1693588293387,0.81714678,25721.0,25720.0,0.33012173]
[1693588293626,0.93364678,25721.0,25720.0,0.33312173]
[1693588293778,0.93880678,25721.0,25720.0,0.3492777]
[1693588293976,0.87898678,25721.0,25720.0,0.3492777]
[1693588294203,0.77908678,25721.0,25720.0,0.3492777]
[1693588294854,1.09306796,25721.0,25720.0,0.3492777]
[1693588295043,1.25806396,25721.0,25720.0,0.3492777]
[1693588295361,1.27342396,25721.0,25720.0,0.3492777]
[1693588295538,1.27678396,25721.0,25720.0,0.3492777]
[1693588295735,1.28650396,25721.0,25720.0,0.3492777]
[1693588295892,1.40774518,25721.0,25720.0,0.33312173]
[1693588296098,2.638343,25721.0,25720.0,0.33312173]
[1693588296375,2.39300262,25721.0,25720.0,0.33312173]
[1693588296710,2.39468262,25721.0,25720.0,0.33312173]
[1693588296920,2.38544262,25721.0,25720.0,0.33312173]
[1693588297116,2.64822871,25721.0,25720.0,0.33312173]
[1693588297467,2.36708262,25721.0,25720.0,0.33312173]
[1693588297669,2.36600262,25721.0,25720.0,0.33312173]
[1693588297843,2.6189138,25721.0,25720.0,0.33312173]
[1693588298095,2.4510338,25721.0,25720.0,0.33312173]
[1693588298392,2.41255859,25721.0,25720.0,0.33312173]
[1693588298598,2.33864262,25721.0,25720.0,0.33312173]
[1693588298769,2.20502262,25721.0,25720.0,0.33312173]
[1693588298979,2.20160262,25721.0,25720.0,0.33312173]
[1693588299180,2.20058262,25721.0,25720.0,0.33312173]
[1693588299334,2.20238262,25721.0,25720.0,0.33312173]
[1693588299536,2.20388262,25721.0,25720.0,0.33312173]
[1693588299742,2.34128262,25721.0,25720.0,0.33312173]
[1693588299974,2.34368262,25721.0,25720.0,0.33312173]
[1693588300181,2.34752262,25721.0,25720.0,0.33312173]
[1693588300386,2.79414262,25721.0,25720.0,0.33312173]
[1693588300594,3.12252262,25721.0,25720.0,0.33312173]
[1693588300798,3.19110262,25721.0,25720.0,0.33312173]
[1693588301004,3.29020262,25721.0,25720.0,0.33312173]
[1693588301240,3.30190262,25721.0,25720.0,0.29976988]
[1693588301448,3.32980262,25721.0,25720.0,0.28366033]
[1693588301648,3.32980262,25721.0,25720.0,0.18110091]
[1693588301649,3.72139679,25721.0,25720.0,0.18110091]
[1693588301856,0.02,25715.0,25714.0,0.2698]
[1693588302091,0.98962149,25715.0,25711.0,0.1614]
[1693588302302,0.02,25713.0,25710.0,22.0]
[1693588302545,0.68852149,25712.0,25711.0,0.2698]
[1693588302731,0.52318678,25712.0,25711.0,0.2698]
[1693588302940,0.78412678,25712.0,25711.0,0.2698]
[1693588303141,0.78508678,25712.0,25711.0,0.2698]
[1693588303351,0.81304678,25712.0,25711.0,0.2698]
[1693588303566,0.79414678,25712.0,25711.0,0.2698]
[1693588303774,0.74308678,25712.0,25711.0,0.5121]
[1693588305239,0.036,25712.0,25711.0,0.5121]
[1693588305420,0.072,25712.0,25711.0,0.5121]
[1693588305689,0.45908678,25712.0,25711.0,0.5121]
[1693588305826,0.47908678,25712.0,25711.0,0.5121]
[1693588306251,0.63471778,25712.0,25711.0,0.5121]
[1693588306739,0.72315778,25712.0,25711.0,0.5121]
[1693588306964,0.97305767,25712.0,25711.0,0.5121]
[1693588307174,0.99135767,25712.0,25711.0,0.5121]
[1693588307371,0.99951767,25712.0,25711.0,0.5121]
[1693588307575,1.48719767,25712.0,25711.0,0.2698]
[1693588307784,1.03863778,25712.0,25711.0,0.2698]
[1693588307955,1.03137778,25712.0,25711.0,0.2698]
[1693588308162,1.02957778,25712.0,25711.0,0.2698]
[1693588308336,1.02045778,25712.0,25711.0,0.2698]
[1693588308717,0.93471778,25712.0,25711.0,0.2698]
[1693588309135,0.227631,25712.0,25711.0,0.40858336]
[1693588309337,0.072,25712.0,25711.0,0.42858336]
[1693588309740,0.45908678,25712.0,25711.0,0.3498]
[1693588309941,0.45908678,25712.0,25711.0,0.2698]
[1693588310145,0.38708678,25712.0,25711.0,0.2698]
[1693588310347,1.02946631,25712.0,25711.0,0.2738]
[1693588310564,0.82863878,25712.0,25711.0,0.2788]
[1693588310737,0.82863878,25712.0,25711.0,0.2748]
[1693588310738,0.67121878,25712.0,25711.0,0.2748]
[1693588310971,0.69685878,25712.0,25711.0,0.2748]
[1693588311174,1.00207878,25712.0,25711.0,0.2748]
[1693588311378,1.42803292,25712.0,25711.0,0.2748]
[1693588311581,1.46727292,25712.0,25711.0,0.005]
[1693588311792,1.46295292,25712.0,25711.0,0.005]
[1693588311996,1.46579292,25712.0,25710.0,22.0]
[1693588312201,1.00379893,25711.0,25710.0,22.0]
[1693588312413,1.31927893,25711.0,25710.0,22.0]
[1693588312611,1.33115893,25711.0,25710.0,22.0]
[1693588312815,1.80681893,25711.0,25710.0,22.0]
[1693588313016,1.81473893,25711.0,25710.0,22.0]
[1693588313231,1.99447307,25711.0,25710.0,22.004]
[1693588313434,2.02711307,25711.0,25710.0,22.004]
[1693588313564,1.84333893,25711.0,25710.0,22.001]
[1693588313775,1.87144045,25711.0,25710.0,22.001]
[1693588313992,1.87888045,25711.0,25710.0,22.001]
[1693588314197,1.86856045,25711.0,25710.0,22.001]
[1693588314401,1.86796045,25711.0,25710.0,22.001]
[1693588314605,1.86628045,25711.0,25710.0,22.001]
[1693588314797,1.86628045,25711.0,25710.0,22.005]
[1693588314798,2.08400045,25711.0,25710.0,22.005]
[1693588315002,1.86416045,25711.0,25710.0,22.005]
[1693588315208,1.6000483,25711.0,25710.0,21.83700503]
[1693588315362,2.11613473,25711.0,25710.0,21.83700503]
[1693588315565,2.07887473,25711.0,25710.0,21.83700503]
[1693588315768,1.78253473,25711.0,25710.0,21.83700503]
[1693588315967,1.83533473,25711.0,25710.0,21.83700503]
[1693588316195,1.8039483,25711.0,25710.0,21.83200503]
[1693588316403,2.04226435,25711.0,25710.0,21.83200503]
[1693588316603,1.85458435,25711.0,25710.0,21.8482307]
[1693588316808,1.8769883,25711.0,25710.0,21.8482307]
[1693588317050,1.8726683,25711.0,25710.0,21.8482307]
[1693588317310,2.10842899,25711.0,25710.0,21.8482307]
[1693588317499,1.6689683,25711.0,25710.0,21.82127932]
[1693588317722,1.87105077,25711.0,25710.0,21.82127932]
[1693588317928,2.10373077,25711.0,25710.0,21.82127932]
[1693588318140,2.09815077,25711.0,25710.0,21.82127932]
[1693588318356,1.88041077,25711.0,25710.0,21.82127932]
[1693588318565,1.88041077,25711.0,25710.0,21.54212833]
[1693588318566,3.5040307,25711.0,25710.0,21.54212833]
[1693588318822,4.8011507,25711.0,25710.0,19.77447879]
[1693588319050,5.69500515,25711.0,25710.0,19.29879306]
[1693588319260,5.69500515,25711.0,25710.0,18.81199523]
[1693588319261,4.78848821,25711.0,25710.0,18.81199523]
[1693588319580,3.8951423,25711.0,25710.0,18.81199523]
[1693588319844,2.5655023,25711.0,25710.0,18.81199523]
[1693588320046,2.5655023,25711.0,25710.0,18.88647826]
[1693588320047,1.87862821,25711.0,25710.0,18.88647826]
[1693588320299,0.4907883,25711.0,25710.0,19.07187867]
[1693588320498,0.4907883,25711.0,25710.0,18.99739564]
[1693588320961,0.71096198,25711.0,25710.0,18.99739564]
[1693588321186,1.6121669,25711.0,25710.0,18.75509564]
[1693588321399,0.072,25711.0,25710.0,18.99739564]
[1693588321809,0.036,25711.0,25710.0,18.99739564]
[1693588322485,0.155632,25712.0,25710.0,18.99739564]
[1693588322489,0.02,25716.0,25711.0,0.08]
[1693588322490,0.07056,25716.0,25711.0,0.08]
[1693588322491,0.06,25720.0,25713.0,0.08]
[1693588322720,0.03064203,25716.0,25714.0,0.07448303]
[1693588322938,1.80796682,25719.0,25716.0,0.2423]
[1693588322939,0.10802,25719.0,25716.0,0.2423]
[1693588323159,0.10802,25719.0,25714.0,0.07448303]
[1693588323160,1.12111315,25718.0,25714.0,0.07448303]
[1693588323383,1.12111315,25718.0,25717.0,0.2423]
[1693588323829,1.12111315,25719.0,25717.0,0.2423]
[1693588324028,1.12111315,25719.0,25718.0,0.2423]
[1693588324241,1.73477093,25719.0,25718.0,0.2423]
[1693588324444,1.73441093,25719.0,25718.0,0.2423]
[1693588324671,1.73441093,25719.0,25718.0,0.25854696]
[1693588324672,1.73663093,25719.0,25718.0,0.25854696]
[1693588324881,1.96379093,25719.0,25718.0,0.25854696]
[1693588325350,1.96379093,25719.0,25718.0,0.2423]
[1693588325557,1.27670415,25719.0,25718.0,0.3423]
[1693588325762,0.06774,25724.0,25720.0,0.2423]
[1693588325969,1.50804386,25723.0,25721.0,0.07448303]
[1693588326175,1.12095708,25722.0,25720.0,0.2423]
[1693588326390,0.38708678,25721.0,25720.0,0.4846]
[1693588326602,1.58190386,25721.0,25720.0,0.2423]
[1693588326807,1.59444386,25721.0,25720.0,0.2423]
[1693588327009,1.87830386,25721.0,25720.0,0.2423]
[1693588327223,1.80804386,25721.0,25720.0,0.2423]
[1693588327428,1.50804386,25721.0,25720.0,0.2423]
[1693588327836,1.54404386,25721.0,25720.0,0.2433]
[1693588328040,1.69961486,25721.0,25720.0,0.2433]
[1693588328238,1.69961486,25721.0,25720.0,0.2463]
[1693588328470,1.9644685,25721.0,25720.0,0.2463]
[1693588328684,1.71961486,25721.0,25720.0,0.2463]
[1693588328892,1.54404386,25721.0,25720.0,0.2463]
[1693588329111,1.50804386,25721.0,25720.0,0.2423]
[1693588329489,1.57104386,25721.0,25720.0,0.2463]
[1693588329693,1.53504386,25721.0,25720.0,0.2453]
[1693588329923,1.53504386,25721.0,25720.0,0.2463]
[1693588330131,1.67456386,25721.0,25720.0,0.2463]
[1693588330339,1.94437604,25721.0,25720.0,0.2463]
[1693588330538,1.98415604,25721.0,25720.0,0.004]
[1693588330752,1.98415604,25721.0,25715.0,0.2423]
[1693588330753,0.02,25718.0,25715.0,0.2423]
[1693588330983,1.68287857,25717.0,25713.0,0.4857]
[1693588331118,1.44095708,25716.0,25713.0,0.4857]
[1693588331310,0.70708678,25716.0,25715.0,0.2423]
[1693588331562,0.02,25719.0,25715.0,0.3223]
[1693588331563,0.072,25719.0,25715.0,0.3223]
[1693588331809,1.31265177,25718.0,25715.0,0.15548303]
[1693588332018,0.38708678,25716.0,25715.0,0.001]
[1693588332213,1.50813939,25716.0,25714.0,0.01627485]
[1693588332422,0.45692678,25716.0,25715.0,0.1615]
[1693588332601,1.63271793,25716.0,25715.0,0.1625]
[1693588332824,1.63877793,25716.0,25715.0,0.1625]
[1693588332978,1.56425793,25716.0,25715.0,0.1625]
[1693588333178,1.54425793,25716.0,25715.0,0.1625]
[1693588333482,0.15559,25718.0,25716.0,0.08]
[1693588333693,0.036,25718.0,25717.0,0.1615]
[1693588333895,0.08616,25722.0,25717.0,0.1615]
[1693588334107,0.38708678,25718.0,25717.0,0.07448303]
[1693588334322,0.38708678,25718.0,25716.0,0.1]
[1693588334539,0.12072,25721.0,25717.0,0.1615]
[1693588334755,0.23063345,25720.0,25714.0,0.01627485]
[1693588334990,0.25706264,25716.0,25714.0,0.17777485]
[1693588335221,0.02,25715.0,25714.0,0.01627485]
[1693588335438,1.15312127,25715.0,25710.0,18.90036997]
[1693588335654,0.85478678,25711.0,25710.0,18.73886997]
[1693588335876,1.04962149,25711.0,25710.0,18.73886997]
[1693588336087,2.08950149,25711.0,25710.0,18.73886997]
[1693588336264,1.69502678,25711.0,25710.0,18.73886997]
[1693588336509,3.64762678,25711.0,25710.0,18.73886997]
[1693588336721,1.64438678,25711.0,25710.0,18.73886997]
[1693588336930,3.65254678,25711.0,25710.0,18.73886997]
[1693588337135,2.69094678,25711.0,25710.0,18.73886997]
[1693588337350,2.69646678,25711.0,25710.0,18.73886997]
[1693588337553,2.69802678,25711.0,25710.0,18.73886997]
[1693588337780,2.68350678,25711.0,25710.0,18.73886997]
[1693588337993,3.88764687,25711.0,25710.0,18.73886997]
[1693588338193,4.31752104,25711.0,25710.0,18.02040497]
[1693588338403,4.73002104,25711.0,25710.0,16.14690752]
[1693588338613,4.29036687,25711.0,25710.0,14.8890761]
[1693588338825,4.29036687,25711.0,25710.0,13.7325521]
[1693588338826,4.24608687,25711.0,25710.0,13.7325521]
[1693588339118,4.02502678,25711.0,25710.0,13.7325521]
[1693588339391,4.13903678,25711.0,25710.0,13.7325521]
[1693588339587,4.19429678,25711.0,25710.0,13.7325521]
[1693588339791,4.62711095,25711.0,25710.0,13.2703621]
[1693588339994,4.29743678,25711.0,25710.0,12.3968421]
[1693588340201,4.26017678,25711.0,25710.0,12.3968421]
[1693588340407,3.97876629,25711.0,25710.0,12.3968421]
[1693588340620,1.63866678,25711.0,25710.0,12.3968421]
[1693588340825,1.86735061,25711.0,25710.0,12.3968421]
[1693588341027,1.72395061,25711.0,25710.0,12.3968421]
[1693588341204,1.87647061,25711.0,25710.0,12.3968421]
[1693588341432,1.20281061,25711.0,25710.0,12.3968421]
[1693588341607,1.15932678,25711.0,25710.0,12.3968421]
[1693588341936,3.30087321,25711.0,25710.0,11.4481671]
[1693588342129,3.33417321,25711.0,25710.0,11.2185831]
[1693588342331,3.83615658,25711.0,25710.0,10.2791701]
[1693588342549,3.83615658,25711.0,25710.0,9.6825752]
[1693588342761,4.08940453,25711.0,25710.0,8.4898592]
[1693588342888,4.10940453,25711.0,25710.0,7.3263462]
[1693588343312,4.10940453,25711.0,25710.0,6.6988981]
[1693588343313,4.28796804,25711.0,25710.0,6.6988981]
[1693588343519,4.195922,25711.0,25710.0,3.45311035]
[1693588343700,4.14946103,25711.0,25710.0,0.07514435]
[1693588343900,0.4677,25702.0,25701.0,0.00042]
[1693588344133,1.30962149,25702.0,25701.0,0.21555666]
[1693588344347,1.30962149,25702.0,25701.0,0.00042]
[1693588344348,1.02372149,25702.0,25701.0,0.00042]
[1693588344544,0.88136678,25702.0,25701.0,0.00042]
[1693588344747,1.22016149,25702.0,25701.0,0.00042]
[1693588344948,1.14044678,25702.0,25701.0,0.00042]
[1693588345151,1.12160678,25702.0,25701.0,0.00042]
[1693588345357,1.76021146,25702.0,25701.0,0.00042]
[1693588345560,1.83865146,25702.0,25701.0,0.00042]
[1693588345730,1.82911146,25702.0,25701.0,0.00042]
[1693588345934,1.88437146,25702.0,25701.0,0.00042]
[1693588346169,1.88437146,25702.0,25700.0,33.0]
[1693588346170,1.5677,25701.0,25700.0,31.41950474]
[1693588346375,2.96729789,25701.0,25700.0,19.2966952]
[1693588346727,0.06,25679.0,25678.0,0.00047267]
[1693588346922,0.06,25679.0,25671.0,0.00011]
[1693588346923,0.1,25672.0,25671.0,0.00011]
[1693588347150,0.5,25679.0,25671.0,0.00011]
[1693588347151,0.02,25678.0,25671.0,0.00011]
[1693588347343,0.38910504,25675.0,25674.0,0.06]
[1693588347559,0.8823884,25675.0,25674.0,0.29081011]
[1693588347763,0.29258874,25675.0,25674.0,0.31989112]
[1693588347977,0.22918989,25689.0,25674.0,0.31989112]
[1693588347978,0.09534,25688.0,25681.0,0.015]
[1693588348177,0.09534,25688.0,25674.0,0.51388101]
[1693588348178,0.1182,25691.0,25688.0,0.2424]
[1693588348389,0.35072156,25687.0,25683.0,0.015]
[1693588348603,0.35072156,25687.0,25686.0,0.2424]
[1693588348813,0.73780834,25687.0,25686.0,0.58352303]
[1693588349018,0.73780834,25687.0,25686.0,0.26664]
[1693588349217,0.39572156,25687.0,25686.0,0.26664]
[1693588349425,0.78280834,25687.0,25686.0,0.2424]
[1693588349639,0.82680834,25687.0,25686.0,0.2424]
[1693588349848,0.045,25681.0,25680.0,0.2424]
[1693588350077,0.045,25683.0,25680.0,0.2424]
[1693588350277,0.02,25689.0,25680.0,0.2424]
[1693588350278,0.005,25691.0,25684.0,0.015]
[1693588350495,0.56808283,25694.0,25685.0,0.47656981]
[1693588350496,0.005,25689.0,25685.0,0.47656981]
[1693588350706,0.036,25687.0,25685.0,0.47656981]
[1693588350918,0.036,25687.0,25686.0,0.2424]
[1693588351123,0.04,25687.0,25686.0,0.45631375]
[1693588351344,0.005,25689.0,25687.0,0.20111798]
[1693588351553,0.005,25689.0,25688.0,0.4848]
[1693588351554,0.38708678,25689.0,25688.0,0.4848]
[1693588351775,0.53514678,25689.0,25688.0,0.4848]
[1693588351987,0.53598678,25689.0,25688.0,0.4848]
[1693588352197,0.04,25691.0,25688.0,0.4848]
[1693588352405,0.43962283,25694.0,25690.0,0.2424]
[1693588352611,0.04,25695.0,25691.0,0.06948303]
[1693588352612,0.38708678,25693.0,25691.0,0.06948303]
[1693588352811,0.46160678,25693.0,25692.0,0.2424]
[1693588353019,0.38708678,25693.0,25692.0,0.2424]
[1693588353646,0.38708678,25693.0,25692.0,9.16e-06]
[1693588353845,0.47600678,25693.0,25692.0,9.16e-06]
[1693588354057,0.68462578,25693.0,25692.0,0.00400916]
[1693588354257,0.68714578,25693.0,25692.0,0.00400916]
[1693588354475,0.57884578,25693.0,25692.0,0.00400916]
[1693588354692,0.03,25693.0,25692.0,0.24740916]
[1693588354900,0.03,25693.0,25692.0,0.27415008]
[1693588355729,0.1602,25699.0,25692.0,0.27415008]
[1693588355730,0.1425,25700.0,25692.0,0.27415008]
[1693588355945,0.38708678,25700.0,25694.0,0.06]
[1693588356151,0.38708678,25700.0,25699.0,0.47543159]
[1693588356353,0.45290678,25700.0,25699.0,0.54491462]
[1693588356576,0.02,25702.0,25699.0,0.54491462]
[1693588356577,0.0714,25702.0,25699.0,0.36637449]
[1693588356765,0.09314,25707.0,25701.0,0.2424]
[1693588356967,0.09314,25707.0,25703.0,0.2424]
[1693588356968,0.02,25704.0,25703.0,0.2424]
[1693588357171,0.02,25704.0,25702.0,0.01189396]
[1693588357172,0.40708678,25704.0,25702.0,0.01189396]
[1693588357392,0.44708678,25703.0,25702.0,0.01189396]
[1693588357593,0.75344678,25703.0,25702.0,0.01189396]
[1693588357766,0.71984678,25703.0,25702.0,0.01189396]
[1693588357967,0.02,25702.0,25701.0,0.004]
[1693588358171,0.40708678,25702.0,25701.0,0.004]
[1693588358388,0.40708678,25702.0,25699.0,0.007]
[1693588358389,0.06,25700.0,25699.0,0.007]
[1693588358593,0.46708678,25700.0,25699.0,0.007]
[1693588359010,1.87430678,25700.0,25699.0,0.007]
[1693588359217,0.86920678,25700.0,25699.0,0.007]
[1693588359407,0.86920678,25700.0,25694.0,0.2424]
[1693588359408,0.02,25699.0,25694.0,0.2424]
[1693588359625,0.56192149,25698.0,25695.0,0.05173]
[1693588359837,0.40708678,25698.0,25697.0,0.2424]
[1693588359970,0.38708678,25698.0,25697.0,0.2424]
[1693588360384,0.45320678,25698.0,25697.0,0.2424]
[1693588360586,0.45320678,25698.0,25694.0,0.2424]
[1693588360587,0.45986678,25698.0,25694.0,0.2424]
[1693588360800,0.45986678,25698.0,25693.0,0.2749]
[1693588360801,0.02,25696.0,25695.0,0.002]
[1693588360993,0.02,25696.0,25693.0,0.2749]
[1693588360994,0.42708678,25696.0,25693.0,0.2749]
[1693588361200,0.58192149,25695.0,25693.0,0.2749]
[1693588361406,0.02,25692.0,25687.0,0.2424]
[1693588361653,0.56192149,25691.0,25688.0,0.02424]
[1693588361854,0.63788149,25691.0,25688.0,0.02424]
[1693588362183,0.63908149,25691.0,25688.0,0.02424]
[1693588362379,2.0,25690.0,25688.0,0.02424]
[1693588362582,0.38708678,25689.0,25688.0,0.02424]
[1693588362714,0.38708678,25689.0,25687.0,0.2424]
[1693588362926,1.38708678,25689.0,25687.0,0.2424]
[1693588363129,1.38708678,25689.0,25688.0,0.032]
[1693588363331,1.38708678,25689.0,25687.0,0.2424]
[1693588363332,0.38708678,25689.0,25687.0,0.2424]
[1693588363538,1.38708678,25689.0,25687.0,0.2424]
[1693588363725,1.38708678,25689.0,25688.0,0.032]
[1693588363962,0.38708678,25689.0,25687.0,0.2594]
[1693588364192,0.39008678,25689.0,25688.0,0.27156536]
[1693588364428,0.54986178,25689.0,25688.0,0.27156536]
[1693588364659,1.63236178,25689.0,25688.0,0.032]
[1693588364865,0.68448178,25689.0,25688.0,0.032]
[1693588365077,2.98327649,25689.0,25688.0,0.032]
[1693588365292,4.23769649,25689.0,25688.0,0.049]